bitfinex-derivatives/quotes_SOLF0:USTF0_20250911
["timestamp","ask_amount","ask_price","bid_price","bid_amount"]
[1757563287384,14.6072309,224.11,224.1,2.0293292]
[1757563287982,17.17004267,224.11,224.1,2.0293292]
[1757563288577,14.6072309,224.11,224.1,2.0293292]
[1757563288783,10.82118141,224.11,224.1,2.0293292]
[1757563288977,7.13,224.11,224.1,2.0293292]
[1757563289179,2.59214907,224.16,224.1,2.0293292]
[1757563289382,7.16,224.14,224.1,2.0293292]
[1757563289583,2.59214907,224.16,224.1,2.0293292]
[1757563289783,10.84542996,224.15,224.1,2.0293292]
[1757563289984,7.16,224.13,224.1,2.0293292]
[1757563290184,2.56281177,224.13,224.1,2.0293292]
[1757563290499,7.16,224.12,224.1,2.0293292]
[1757563291086,2.56281177,224.13,224.1,2.0293292]
[1757563291588,7.16,224.12,224.1,2.0293292]
[1757563291990,2.56281177,224.15,224.1,2.0293292]
[1757563292292,3.68392317,224.14,224.1,2.0293292]
[1757563292492,7.16,224.12,224.1,2.0293292]
[1757563295293,7.16,224.14,224.1,9.5093292]
[1757563295494,2.56281177,224.15,224.1,9.5093292]
[1757563295695,7.16,224.13,224.1,2.0293292]
[1757563295892,2.56281177,224.15,224.1,2.0293292]
[1757563296094,7.16,224.13,224.1,2.0293292]
[1757563296289,2.56281177,224.15,224.1,2.0293292]
[1757563296489,3.67993062,224.14,224.1,2.0293292]
[1757563296697,7.16,224.12,224.1,2.0293292]
[1757563297195,7.16,224.14,224.1,2.0293292]
[1757563297391,2.56281177,224.15,224.1,2.0293292]
[1757563297698,3.67932785,224.14,224.1,2.0293292]
[1757563297889,2.56281177,224.15,224.1,2.0293292]
[1757563298086,7.16,224.13,224.1,2.0293292]
[1757563298289,3.67932785,224.14,224.1,2.0293292]
[1757563298290,7.16,224.14,224.1,2.0293292]
[1757563298687,2.56281177,224.15,224.1,2.0293292]
[1757563299587,7.16,224.13,224.1,2.0293292]
[1757563299793,7.16,224.11,224.1,2.0293292]
[1757563302798,7.16,224.1,224.08,0.0292995]
[1757563302994,2.56281177,224.12,224.08,0.0292995]
[1757563303194,7.16,224.1,224.08,0.0292995]
[1757563303498,7.16,224.11,224.08,0.0292995]
[1757563303698,2.59647773,224.12,224.08,0.0292995]
[1757563303890,3.6783234,224.11,224.08,0.0292995]
[1757563304094,7.16,224.11,224.08,0.0292995]
[1757563304296,2.59647773,224.12,224.08,0.0292995]
[1757563304500,3.67833636,224.11,224.08,0.0292995]
[1757563304701,7.16,224.11,224.08,0.0292995]
[1757563305296,2.59647773,224.12,224.08,0.0292995]
[1757563305496,3.67820312,224.11,224.08,0.0292995]
[1757563305697,7.16,224.11,224.08,0.0292995]
[1757563306194,2.59647773,224.12,224.08,0.0292995]
[1757563306394,3.67184522,224.11,224.08,0.0292995]
[1757563306598,7.16,224.09,224.08,0.0292995]
[1757563309104,10.83373591,224.09,224.08,0.0292995]
[1757563312107,14.63621541,224.09,224.08,0.0292995]
[1757563314110,17.19902718,224.09,224.08,0.0292995]
[1757563315606,7.47621541,224.09,224.08,0.0292995]
[1757563316013,14.63621541,224.09,224.08,0.0292995]
[1757563319512,17.19902718,224.09,224.08,0.0292995]
[1757563319815,17.19902718,224.09,224.02,7.16]
[1757563320116,7.6,224.07,224.02,7.16]
[1757563320310,2.56281177,224.09,224.02,7.16]
[1757563320311,7.6,224.05,224.02,7.16]
[1757563320510,7.47621541,224.04,224.02,7.16]
[1757563320713,3.67373591,224.03,224.02,7.16]
[1757563320909,3.67373591,224.04,224.02,7.16]
[1757563321112,3.67373591,224.03,223.95,7.16]
[1757563321312,3.67373591,224.02,223.95,7.16]
[1757563321508,3.69734908,224.01,223.95,7.16]
[1757563321709,3.69734908,224.0,223.95,7.16]
[1757563321912,7.6,224.05,223.95,7.16]
[1757563322113,0.03345602,224.0,223.95,7.16]
[1757563322314,3.69739993,223.99,223.95,7.16]
[1757563323216,0.03345602,224.0,223.95,7.16]
[1757563323517,3.69959366,223.99,223.95,7.16]
[1757563323719,7.6,224.11,223.97,7.16]
[1757563323920,10.16281177,224.09,223.97,7.16]
[1757563324119,7.52467748,224.08,223.97,7.16]
[1757563324316,7.52467748,224.07,223.97,7.16]
[1757563324510,7.52467748,224.06,223.97,7.16]
[1757563324714,7.52467748,224.05,223.97,7.16]
[1757563324916,7.55277032,224.04,223.97,7.16]
[1757563325121,7.52467748,224.03,223.97,7.16]
[1757563325320,3.69913375,224.02,223.97,7.16]
[1757563325615,0.02809284,224.04,223.97,7.16]
[1757563325822,3.7019357,224.03,223.97,7.16]
[1757563326118,0.02809284,224.04,223.97,7.16]
[1757563331819,7.41402509,224.03,223.97,7.16]
[1757563332023,7.62809284,224.04,223.97,7.16]
[1757563332323,3.58378629,224.03,223.97,7.16]
[1757563332519,7.62809284,224.04,223.97,7.16]
[1757563332720,3.58367357,224.03,223.97,7.16]
[1757563332920,7.62809284,224.04,223.97,7.16]
[1757563333126,3.58367357,224.03,223.97,7.16]
[1757563333329,7.62809284,224.04,223.97,7.16]
[1757563333522,3.58346663,224.03,223.97,7.16]
[1757563333830,7.62809284,224.04,223.97,7.16]
[1757563334124,3.58346663,224.03,223.97,7.16]
[1757563334324,7.62809284,224.04,223.97,7.16]
[1757563334524,3.58341479,224.03,223.97,7.16]
[1757563334724,7.62809284,224.04,223.97,7.16]
[1757563334927,3.58341479,224.03,223.97,7.16]
[1757563335127,7.62809284,224.04,223.97,7.16]
[1757563335323,3.58362241,224.03,223.97,7.16]
[1757563335632,7.62809284,224.04,223.97,7.16]
[1757563336130,3.81554235,224.03,223.97,7.16]
[1757563336323,7.62809284,224.04,223.97,7.16]
[1757563336626,3.81549034,224.03,223.97,7.16]
[1757563336827,7.62809284,224.04,223.97,7.16]
[1757563337127,3.81549034,224.03,223.97,7.16]
[1757563337326,7.62809284,224.04,223.97,7.16]
[1757563337626,3.81562426,224.03,223.97,7.16]
[1757563337826,7.62809284,224.04,223.97,7.16]
[1757563338030,3.81562426,224.03,223.97,7.16]
[1757563338327,7.62809284,224.04,223.97,7.16]
[1757563338718,3.81590316,224.03,223.97,7.16]
[1757563338925,7.62809284,224.04,223.97,7.16]
[1757563339228,7.33786424,224.03,223.97,7.16]
[1757563339428,7.33786424,224.02,223.91,7.16]
[1757563339622,7.33786424,224.01,223.91,7.16]
[1757563339817,7.33786424,224.0,223.91,7.16]
[1757563340121,0.03428647,223.98,223.91,7.16]
[1757563340327,0.03428647,223.98,223.94,1.64166745]
[1757563340524,0.03428647,223.98,223.95,7.16]
[1757563340822,0.03428647,223.98,223.94,1.64166745]
[1757563341723,0.03428647,223.98,223.95,7.16]
[1757563342027,0.03428647,223.98,223.94,1.64166745]
[1757563342428,0.03428647,223.98,223.95,7.16]
[1757563342628,0.03428647,223.98,223.93,1.64166745]
[1757563343127,0.03428647,223.98,223.94,7.16]
[1757563343920,0.03428647,223.98,223.91,7.16]
[1757563344227,0.03428647,223.98,223.93,1.64166745]
[1757563344725,0.03428647,223.98,223.9,7.06671416]
[1757563344921,0.03428647,223.98,223.94,7.16]
[1757563345724,0.03428647,223.98,223.94,8.80166745]
[1757563345929,0.03428647,223.98,223.94,1.64166745]
[1757563346224,0.03428647,223.98,223.91,7.16]
[1757563346722,0.03428647,223.98,223.94,7.16]
[1757563346923,0.03428647,223.98,223.93,1.64166745]
[1757563347518,0.03428647,223.98,223.91,6.96]
[1757563347924,0.03428647,223.98,223.93,1.64166745]
[1757563348331,0.03428647,223.98,223.94,6.96]
[1757563348527,0.03428647,223.98,223.93,1.64166745]
[1757563348729,7.62428647,223.98,223.92,1.64166745]
[1757563348922,0.03428647,223.98,223.94,6.96]
[1757563349333,0.03428647,223.98,223.93,1.64166745]
[1757563349826,0.03428647,223.98,223.91,6.96]
[1757563350028,0.03428647,223.98,223.94,6.96]
[1757563350635,0.03428647,223.98,223.95,1.64166745]
[1757563351031,0.03428647,223.98,223.97,8.60166745]
[1757563353232,7.59,224.05,223.97,8.60166745]
[1757563353433,7.32483053,224.04,223.99,1.64166745]
[1757563353634,3.80475873,224.03,224.0,6.96]
[1757563353837,7.59,224.05,223.99,1.64166745]
[1757563354037,7.32483053,224.04,223.99,1.64166745]
[1757563354238,3.80475873,224.03,224.0,6.96]
[1757563354540,7.59,224.06,224.0,6.96]
[1757563354738,7.59,224.04,224.0,6.96]
[1757563354937,3.80495227,224.03,224.0,6.96]
[1757563355139,7.59,224.04,224.0,6.96]
[1757563355336,3.80515703,224.03,224.0,6.96]
[1757563355542,1.64166745,224.05,224.0,6.96]
[1757563355741,14.91559732,224.04,223.97,8.60166745]
[1757563355940,3.80515703,224.03,223.97,8.60166745]
[1757563356146,7.59,224.04,223.97,8.60166745]
[1757563356344,3.80537361,224.03,223.97,6.96]
[1757563356540,7.32636667,224.02,223.96,6.96]
[1757563356844,3.80537361,224.01,223.96,6.96]
[1757563357039,1.64166745,224.03,223.96,6.96]
[1757563357239,7.32690454,224.02,223.96,6.96]
[1757563357445,3.80581144,224.01,223.96,6.96]
[1757563357644,1.64166745,224.03,223.96,6.96]
[1757563357944,7.32690454,224.02,223.96,6.96]
[1757563358148,3.80581144,224.01,223.95,8.60166745]
[1757563358340,3.80598634,224.0,223.95,6.96]
[1757563358542,9.23166745,224.02,223.95,6.96]
[1757563358744,7.32750771,224.01,223.95,6.96]
[1757563358944,3.80611188,224.0,223.93,6.96]
[1757563359140,7.59,224.01,223.93,6.96]
[1757563359349,3.80606554,224.0,223.93,6.96]
[1757563359549,7.59,224.01,223.93,6.96]
[1757563359849,3.80606554,224.0,223.94,1.64166745]
[1757563360049,7.59,224.01,223.95,6.96]
[1757563360252,3.80605434,224.0,223.95,6.96]
[1757563360449,7.59,224.01,223.95,6.96]
[1757563360654,3.8060075,224.0,223.94,1.64166745]
[1757563360852,7.59,224.01,223.95,6.96]
[1757563361047,3.8060075,224.0,223.95,6.96]
[1757563361252,7.59,224.01,223.95,6.96]
[1757563361549,7.59,224.01,223.94,6.96]
[1757563361550,3.8062141,224.0,223.94,6.96]
[1757563361754,7.59,224.01,223.94,6.96]
[1757563362052,3.8062141,224.0,223.94,6.96]
[1757563362250,7.59,224.01,223.94,6.96]
[1757563362553,3.80645938,224.0,223.94,6.96]
[1757563362751,7.59,224.01,223.94,6.96]
[1757563363048,3.81500636,224.0,223.94,6.96]
[1757563363254,7.59,224.01,223.94,6.96]
[1757563363556,3.81529336,224.0,223.94,6.96]
[1757563363748,7.59,224.01,223.94,6.96]
[1757563363955,7.59,223.99,223.92,6.65393888]
[1757563364150,7.59,223.99,223.93,6.96]
[1757563364350,9.23166745,224.02,223.93,8.60166745]
[1757563364552,7.3377216,224.01,223.93,8.60166745]
[1757563364851,3.81552876,224.0,223.93,8.60166745]
[1757563365052,9.23166745,224.02,223.93,8.60166745]
[1757563365249,7.33782283,224.01,223.93,8.60166745]
[1757563365446,11.4055814,224.0,223.93,8.60166745]
[1757563365647,7.59,224.0,223.93,8.60166745]
[1757563366157,3.81572894,223.99,223.93,8.60166745]
[1757563366354,7.59,224.0,223.93,8.60166745]
[1757563366549,3.81577591,223.99,223.93,8.60166745]
[1757563366847,7.59,224.0,223.93,6.96]
[1757563367053,7.27916298,223.99,223.93,6.96]
[1757563367252,3.81577591,223.98,223.91,6.96]
[1757563367452,9.23166745,224.0,223.91,6.96]
[1757563367648,7.27450745,223.99,223.91,8.60166745]
[1757563367852,3.81158348,223.98,223.91,8.60166745]
[1757563368048,9.23166745,224.0,223.91,8.60166745]
[1757563368256,7.27371151,223.99,223.91,8.60166745]
[1757563368450,3.81116476,223.98,223.91,8.60166745]
[1757563368647,9.23166745,224.0,223.91,8.60166745]
[1757563368856,7.27371151,223.99,223.91,8.60166745]
[1757563369051,3.81116476,223.98,223.91,8.60166745]
[1757563369249,3.81116476,223.97,223.91,8.60166745]
[1757563369451,7.59,223.98,223.91,8.60166745]
[1757563369654,3.8108161,223.97,223.91,8.60166745]
[1757563369856,7.59,223.98,223.91,8.60166745]
[1757563370057,3.8108161,223.97,223.91,8.60166745]
[1757563370253,7.59,223.98,223.91,8.60166745]
[1757563370457,3.81049607,223.97,223.91,8.60166745]
[1757563370662,7.59,223.98,223.91,8.60166745]
[1757563370961,3.81049607,223.97,223.91,8.60166745]
[1757563371162,0.03040523,223.97,223.92,0.03182742]
[1757563371363,7.59,223.96,223.92,6.99182742]
[1757563371862,11.4007824,223.95,223.92,0.03182742]
[1757563372061,7.59,223.95,223.92,0.03182742]
[1757563372265,1.64166745,223.96,223.92,0.03182742]
[1757563372466,7.59,223.94,223.92,0.03182742]
[1757563373062,7.59,223.95,223.92,0.03182742]
[1757563373262,3.80746224,223.94,223.92,0.03182742]
[1757563373563,7.59,223.93,223.92,0.03182742]
[1757563376268,11.39627317,223.93,223.92,0.03182742]
[1757563376461,13.03794062,223.93,223.92,0.03182742]
[1757563377872,13.47794062,223.93,223.9,2.02015626]
[1757563378169,8.61166745,223.91,223.9,2.02015626]
[1757563378367,12.41794062,223.91,223.9,2.02015626]
[1757563381467,15.87317105,223.91,223.9,2.02015626]
[1757563382063,15.87317105,223.91,223.78,7.2]
[1757563382064,6.97,223.9,223.78,7.2]
[1757563382269,8.61166745,223.85,223.78,7.2]
[1757563382468,1.64166745,223.87,223.78,8.84166745]
[1757563382669,0.03053058,223.84,223.78,7.2]
[1757563384570,6.97,223.82,223.78,7.2]
[1757563384872,6.97,223.82,223.75,7.2]
[1757563385262,8.61166745,223.82,223.75,7.2]
[1757563388774,6.97,223.79,223.75,7.2]
[1757563389269,7.00046045,223.79,223.72,1.64166745]
[1757563389474,7.00046045,223.79,223.73,7.2]
[1757563398676,8.6421279,223.79,223.73,7.2]
[1757563398982,7.00046045,223.79,223.73,7.2]
[1757563399278,0.03046045,223.79,223.75,1.64166745]
[1757563399584,6.97,223.86,223.78,7.2]
[1757563399777,6.97,223.86,223.82,7.2]
[1757563399980,0.77746252,223.97,223.83,8.84166745]
[1757563399981,6.97,223.91,223.83,8.84166745]
[1757563400371,6.97,223.91,223.83,7.2]
[1757563401989,0.03093264,223.89,223.86,7.2]
[1757563403077,7.00093264,223.89,223.86,7.2]
[1757563403275,0.03093264,223.89,223.85,0.02977804]
[1757563403486,0.03093264,223.89,223.86,7.2]
[1757563403686,0.03093264,223.89,223.85,0.02977804]
[1757563403884,0.03093264,223.89,223.86,7.2]
[1757563404185,0.03093264,223.89,223.85,0.02977804]
[1757563404586,0.03093264,223.89,223.86,7.2]
[1757563404884,6.97,223.96,223.86,9.76752133]
[1757563405088,3.73385442,223.95,223.87,7.2]
[1757563405282,6.97,223.96,223.87,7.2]
[1757563405482,3.73457403,223.95,223.87,7.2]
[1757563405692,6.97,223.96,223.87,7.2]
[1757563405987,6.97,223.96,223.89,0.0307608]
[1757563406178,6.97,223.96,223.9,7.2]
[1757563410583,7.13,224.0,223.9,7.2]
[1757563410788,7.20032596,223.99,223.9,7.2]
[1757563410985,3.74033904,223.98,223.9,7.2]
[1757563411185,3.74033904,223.98,223.86,2.56752133]
[1757563411186,3.74033904,223.97,223.92,0.03212905]
[1757563411386,7.13,224.01,223.92,0.03212905]
[1757563411587,7.13,223.99,223.92,0.03212905]
[1757563411890,3.74134337,223.98,223.92,0.03212905]
[1757563412086,7.13,223.99,223.92,0.03212905]
[1757563412290,3.74194744,223.98,223.92,0.03212905]
[1757563412590,7.13,223.99,223.92,0.03212905]
[1757563412791,3.74189619,223.98,223.92,0.03212905]
[1757563412985,7.13,223.99,223.92,0.03212905]
[1757563413387,7.13,223.99,223.92,7.21212905]
[1757563414782,7.13,224.1,223.92,7.21212905]
[1757563414984,7.13,224.07,223.94,7.18]
[1757563415186,7.13,224.05,223.94,7.18]
[1757563415387,7.13,224.05,223.98,0.03380562]
[1757563415894,7.13,224.03,223.98,0.03380562]
[1757563416993,9.69752133,224.01,223.98,0.03380562]
[1757563417297,3.74073088,224.0,223.98,0.03380562]
[1757563417593,7.13,223.99,223.98,0.03380562]
[1757563420001,7.13,224.03,223.98,0.03380562]
[1757563420292,7.13,224.01,223.98,0.03380562]
[1757563420492,13.34911375,224.1,223.98,0.03380562]
[1757563420701,14.32974537,224.09,223.98,7.21380562]
[1757563420889,7.19974537,224.08,223.98,7.21380562]
[1757563421192,3.74007407,224.07,223.98,7.21380562]
[1757563421391,10.87007407,224.06,223.98,7.21380562]
[1757563421588,7.13,224.06,223.98,7.21380562]
[1757563421994,7.13,224.06,223.98,0.03380562]
[1757563422197,7.13,224.06,223.98,7.21380562]
[1757563423798,7.13,224.1,223.98,7.21380562]
[1757563423994,7.13,224.1,224.0,7.18]
[1757563424600,7.13,224.1,224.03,0.03085087]
[1757563424801,7.13,224.1,224.03,7.21085087]
[1757563434704,7.13,224.05,224.03,0.03085087]
[1757563434908,2.56752133,224.06,224.03,0.03085087]
[1757563435103,7.13,224.05,224.03,0.03085087]
[1757563435601,7.13,224.05,223.93,7.18]
[1757563439210,3.72021819,224.04,223.93,7.18]
[1757563439510,6.93,224.03,223.93,7.18]
[1757563442208,3.72618596,224.02,223.93,7.18]
[1757563442412,6.93,224.01,223.93,7.18]
[1757563442617,6.93,224.05,223.93,7.18]
[1757563442815,6.93,224.03,223.93,7.18]
[1757563443210,3.72897727,224.02,223.93,7.18]
[1757563443413,6.93,224.03,223.93,7.18]
[1757563443714,3.72934127,224.02,223.93,7.18]
[1757563443916,6.93,224.03,223.93,7.18]
[1757563444105,3.72934127,224.02,223.93,7.18]
[1757563444313,3.72934127,224.01,223.93,7.18]
[1757563444511,6.93,224.03,223.93,7.18]
[1757563444809,3.7326436,224.02,223.93,7.18]
[1757563445014,3.7326436,224.01,223.93,7.18]
[1757563445209,6.93,224.03,223.93,7.18]
[1757563445413,7.23692359,224.02,223.93,7.18]
[1757563445613,3.73383536,224.01,223.93,7.18]
[1757563445814,6.93,224.03,223.93,7.18]
[1757563446115,7.2372294,224.02,223.93,7.18]
[1757563446313,3.73383536,224.01,223.93,7.18]
[1757563446514,6.93,224.03,223.93,7.18]
[1757563446715,7.2396362,224.02,223.93,7.18]
[1757563447017,6.93,224.03,223.93,7.18]
[1757563447018,3.73507708,224.01,223.93,7.18]
[1757563447209,6.93,224.03,223.93,7.18]
[1757563447409,7.24128673,224.02,223.93,7.18]
[1757563447605,3.73592862,224.01,223.93,7.18]
[1757563447911,6.93,224.03,223.93,7.18]
[1757563448213,7.24187969,224.02,223.93,7.18]
[1757563448413,14.1730986,224.01,223.93,7.18]
[1757563448614,3.73623451,224.0,223.93,7.18]
[1757563449015,6.93,224.06,223.96,6.94]
[1757563449214,3.73680982,224.05,223.96,6.94]
[1757563449415,6.93,224.06,223.96,6.94]
[1757563449617,3.73794455,224.05,223.96,6.94]
[1757563449816,6.93,224.06,223.96,6.94]
[1757563450522,6.93,224.06,223.99,6.94]
[1757563452320,6.93,224.1,224.01,2.56752133]
[1757563452516,6.93,224.1,224.02,6.94]
[1757563452721,6.93,224.08,224.02,6.94]
[1757563452915,6.93,224.06,223.98,6.94]
[1757563453113,3.50923487,224.05,223.98,6.94]
[1757563453318,6.93,224.06,223.98,6.94]
[1757563454820,6.93,224.06,223.96,3.73798867]
[1757563455024,6.93,224.04,223.93,6.94]
[1757563455319,6.93,224.02,223.93,6.94]
[1757563455518,7.15771721,224.01,223.93,6.94]
[1757563455724,6.93,224.02,223.93,6.94]
[1757563456024,7.14582345,224.01,223.93,6.94]
[1757563456224,6.93,224.02,223.93,6.94]
[1757563456424,7.14740877,224.01,223.93,6.94]
[1757563456623,6.93,224.02,223.93,6.94]
[1757563456924,7.1474105,224.01,223.93,6.94]
[1757563457120,6.93,224.02,223.93,10.67798867]
[1757563457619,2.56752133,224.05,223.93,6.94]
[1757563457816,6.93,224.0,223.91,3.73798867]
[1757563458019,6.93,224.0,223.9,3.73798867]
[1757563458328,6.93,224.0,223.91,3.73798867]
[1757563458524,6.93,224.0,223.91,6.94]
[1757563458718,6.93,224.0,223.91,10.67798867]
[1757563458914,6.93,224.0,223.92,6.94]
[1757563460327,8.57218783,224.0,223.92,8.58218783]
[1757563464824,8.57218783,224.0,223.92,6.94]
[1757563465025,14.62,224.05,223.88,5.01227143]
[1757563465026,6.93,223.97,223.89,3.73798867]
[1757563465423,6.93,223.97,223.88,8.58218783]
[1757563466232,1.64218783,223.96,223.88,6.94]
[1757563466432,1.64218783,223.96,223.88,8.58218783]
[1757563467025,1.64218783,223.94,223.85,7.06]
[1757563467333,7.08,223.93,223.85,7.06]
[1757563470935,1.64218783,223.92,223.85,7.06]
[1757563471131,1.64218783,223.9,223.81,308.70218783]
[1757563472135,1.64218783,223.9,223.81,307.06]
[1757563472324,1.64218783,223.9,223.81,308.70218783]
[1757563472933,1.64218783,223.9,223.81,8.70218783]
[1757563475638,7.08,223.91,223.85,1.64218783]
[1757563475834,1.64218783,223.94,223.86,7.06]
[1757563476032,7.08,223.93,223.86,7.06]
[1757563476535,7.08,223.91,223.83,1.64218783]
[1757563476734,7.08,223.91,223.84,7.06]
[1757563478337,7.08,223.91,223.84,8.70218783]
[1757563478934,7.08,223.91,223.84,7.06]
[1757563479237,7.08,223.91,223.84,8.70218783]
[1757563480543,0.03169576,223.9,223.86,1.64218783]
[1757563481038,7.08,223.95,223.87,7.06]
[1757563482245,8.72218783,223.95,223.87,7.06]
[1757563484241,8.72218783,223.95,223.89,7.06]
[1757563484539,7.08,223.99,223.92,1.64218783]
[1757563484742,7.12631288,223.98,223.92,1.64218783]
[1757563484938,3.4914249,223.97,223.93,7.06]
[1757563485143,7.08,223.99,223.93,7.09041121]
[1757563485445,0.02915704,223.97,223.93,1.67259904]
[1757563485647,0.02915704,223.97,223.94,7.06]
[1757563487944,0.02915704,223.97,223.93,1.67259904]
[1757563488136,0.02915704,223.97,223.94,7.06]
[1757563488444,0.02915704,223.97,223.93,1.67259904]
[1757563489140,0.02915704,223.97,223.94,7.06]
[1757563489341,0.02915704,223.97,223.93,1.67259904]
[1757563489648,0.02915704,223.97,223.96,7.06]
[1757563492145,7.08,224.09,223.96,7.5]
[1757563492344,7.10349854,224.08,224.01,1.64218783]
[1757563492543,7.08,224.09,224.01,1.64218783]
[1757563492748,7.10189435,224.08,224.01,1.64218783]
[1757563492953,7.08,224.09,224.01,1.64218783]
[1757563493247,7.10189435,224.08,224.01,1.64218783]
[1757563493455,7.08,224.09,224.03,0.03267313]
[1757563493647,3.63310606,224.08,224.03,0.03267313]
[1757563493848,7.08,224.09,224.03,0.03267313]
[1757563494051,3.63310477,224.08,224.03,0.03267313]
[1757563494345,3.63332976,224.07,224.03,0.03267313]
[1757563494550,1.64218783,224.08,224.03,0.03267313]
[1757563494750,7.08,224.03,223.92,7.06]
[1757563494950,1.64218783,224.02,223.93,1.64218783]
[1757563495151,7.08,224.01,223.93,1.64218783]
[1757563495655,7.08,224.01,223.94,1.64218783]
[1757563496057,7.08,224.01,223.95,7.06]
[1757563498955,7.08,224.01,223.93,1.64218783]
[1757563499252,1.64218783,224.0,223.93,1.64218783]
[1757563499652,7.08,224.01,223.95,1.64218783]
[1757563500160,1.64218783,224.04,223.95,1.64218783]
[1757563500359,8.67218783,224.09,224.02,1.64218783]
[1757563500548,7.03,224.09,224.02,1.64218783]
[1757563500747,7.03,224.07,223.98,1.64218783]
[1757563500954,7.03,224.05,223.98,1.64218783]
[1757563501159,7.10795987,224.04,223.98,1.64218783]
[1757563501360,7.03,224.05,223.98,1.64218783]
[1757563501552,7.10899414,224.04,223.98,1.64218783]
[1757563501858,0.03181784,224.04,223.98,1.64218783]
[1757563502957,7.03,224.03,223.88,5.01227143]
[1757563503254,7.03,224.01,223.94,1.64218783]
[1757563503458,0.03090121,223.98,223.94,1.64218783]
[1757563503655,7.06090121,223.98,223.94,1.64218783]
[1757563503857,7.06090121,223.98,223.94,8.81218783]
[1757563505448,0.03090121,223.98,223.96,1.64218783]
[1757563505756,0.03090121,223.98,223.87,7.17]
[1757563505956,0.03090121,223.98,223.94,1.64218783]
[1757563506154,7.06090121,223.98,223.94,1.64218783]
[1757563506452,0.03090121,223.98,223.94,1.64218783]
[1757563506759,0.03090121,223.98,223.89,7.17]
[1757563506760,8.67218783,223.97,223.89,7.17]
[1757563507448,8.67218783,223.97,223.89,8.81218783]
[1757563507656,8.67218783,223.97,223.89,7.17]
[1757563507852,8.67218783,223.97,223.82,5.01227143]
[1757563507853,1.64218783,223.94,223.83,7.17]
[1757563508158,14.7,223.98,223.83,7.17]
[1757563508159,7.03,223.93,223.84,1.64218783]
[1757563508355,7.03,223.93,223.86,1.64218783]
[1757563508756,7.03,223.93,223.89,7.17]
[1757563509156,8.67218783,223.97,223.88,8.81218783]
[1757563509459,7.03,223.97,223.9,1.64218783]
[1757563510359,5.00042619,224.06,223.91,7.17]
[1757563510556,15.78233916,224.05,223.96,1.64218783]
[1757563510749,7.11015133,224.04,223.98,1.64218783]
[1757563510954,7.03,224.03,223.98,1.64218783]
[1757563511153,7.03,224.06,223.98,8.81218783]
[1757563511350,7.10742467,224.05,223.98,8.81218783]
[1757563511560,7.03,224.06,223.98,8.81218783]
[1757563511752,7.03,224.02,223.9,7.17]
[1757563511957,7.03,224.0,223.9,7.17]
[1757563512259,7.03,224.0,223.92,1.64218783]
[1757563513061,7.03,223.98,223.92,1.64218783]
[1757563515753,7.03,223.98,223.9,8.81218783]
[1757563517161,7.03,223.98,223.92,1.64218783]
[1757563518356,7.03,224.02,223.94,1.64218783]
[1757563518658,7.03,224.02,223.98,8.81218783]
[1757563519162,7.03,224.05,223.98,1.64218783]
[1757563519461,7.04753978,224.04,223.98,1.64218783]
[1757563519664,7.04753978,224.03,223.98,1.64218783]
[1757563519866,7.03,224.01,223.98,1.64218783]
[1757563521155,3.6021879,224.0,223.88,7.17]
[1757563521361,14.08020111,223.99,223.88,7.17]
[1757563521560,14.08020111,223.99,223.91,1.64218783]
[1757563521561,7.03,223.99,223.91,1.64218783]
[1757563521962,7.03,223.99,223.91,8.81218783]
[1757563522363,3.60325219,223.98,223.91,7.17]
[1757563522566,7.03,223.99,223.91,7.17]
[1757563522766,3.60325219,223.98,223.91,7.17]
[1757563522963,7.03,223.99,223.91,7.17]
[1757563523164,7.0516915,223.98,223.91,7.17]